Cogmind - Beta 15 @@@ ROGUE MODE // 2025.10.15 @ 22:18:56 Player: mgobin-777 Result: Destroyed by D-53 Grenadier with Mini Grenade Launcher Performance ------------- Evolutions (0) 0 Regions Visited (2) 400 Robots Destroyed (18) 90 Value Destroyed (386) 386 Prototype IDs (0) 0 Alien Tech Used (0) 0 Bonus (7) 7 TOTAL SCORE: 883 Bonus ------- Follower Combat Kills 7 Cogmind --------- Core Integrity 0/250 Matter 294/300 Energy 99/100 System Corruption 0% Temperature Cool (44) Movement Hovering (120) Ox1 Location -10/Mines Parts ------- > --- POWER (1) -------- (None) > --- PROPULSION (2) --- Hover Unit > --- UTILITY (2) ------ Small Storage Unit Signal Interpreter > --- WEAPON (2) ------- Heavy Assault Rifle > --- INVENTORY (8) ---- Improved Heat Sink Improved Heat Sink Targeting Computer Light Armor Plating Light Armor Plating Beam Cannon Beam Cannon Grenade Launcher Peak State ------------ > --- POWER ------------ Light Angular Momentum Engine > --- PROPULSION ------- Hover Unit Hover Unit > --- UTILITY ---------- Small Storage Unit Signal Interpreter > --- WEAPON ----------- Beam Cannon Heavy Assault Rifle > --- INVENTORY -------- Improved Heat Sink Improved Heat Sink Weapon Shielding Medium Laser Beam Cannon Grenade Launcher Grenade Launcher [Rating: 13] Favorites ----------- Power Ion Engine Engine Ion Engine Propulsion Hover Unit Leg Aluminum Leg Wheel Compact Wheel Hover Unit Hover Unit Utility Small Storage Unit Storage Small Storage Unit Processor Signal Interpreter Protection Weapon Shielding Weapon Beam Cannon Energy Gun Medium Laser Energy Cannon Beam Cannon Ballistic Gun Assault Rifle Launcher Grenade Launcher Build | -11 -10 -10 ------- Run | Yrd Mat Min Slots Evolved . | . . . Power . | . . . Propulsion . | . . . Utility . | . . . Weapon . | . . . Parts Attached 20 | 6 11 3 Power 3 | 1 1 1 Engine 3 | 1 1 1 Core . | . . . Reactor . | . . . Propulsion 7 | 2 5 . Treads . | . . . Leg 3 | . 3 . Wheel 2 | 2 . . Hover 2 | . 2 . Flight . | . . . Utility 3 | 1 2 . Device . | . . . Storage 1 | 1 . . Processor 1 | . 1 . Hackware . | . . . Protection 1 | . 1 . Artifact . | . . . Weapon 7 | 2 3 2 Energy Gun 2 | 2 . . Energy Cannon 2 | . 1 1 Ballistic Gun 2 | . 1 1 Ballistic Cannon . | . . . Launcher 1 | . 1 . Special Weapon . | . . . Impact Weapon . | . . . Slashing Weapon . | . . . Piercing Weapon . | . . . Special Melee Weapon . | . . . Unidentified Prototypes . | . . . Parts Lost 6 | . 3 3 Power 1 | . . 1 Propulsion 3 | . 2 1 Utility . | . . . Weapon 2 | . 1 1 Highest Loss Streak 3 | . 2 3 To Critical Strikes . | . . . Average Backups 3 | . 2 6 Power . | . . . Propulsion . | . . . Utility 1 | . . 2 Weapon 2 | . 2 3 Tool/Special . | . . . Unused Backups 7 | . 1 6 Power . | . . . Propulsion . | . . . Utility 6 | . 1 5 Weapon 1 | . . 1 Tool/Special . | . . . Average Slot Usage (%) 92 | . 89 100 Engine 14 | . 14 14 Leg 3 | . 4 . Wheel 6 | . 9 . Hover 17 | . 13 28 Storage 14 | . 14 14 Processor 6 | . 3 14 Protection 1 | . 1 . Energy Gun 6 | . 9 . Energy Cannon 11 | . 9 15 Ballistic Gun 5 | . 5 6 Launcher 4 | . 4 6 Peak Build Rating 13 | 6 7 13 Average Rating 7 | 4 6 9 On Entrance 4 | . 6 7 Naked Turns . | . . . Heaviest Build 20 | 14 16 20 Greatest Support 26 | 26 26 12 Greatest Overweight (x) 4 | . 4 1 Average Overweight (x) . | . . 1 Largest Inventory Capacity 8 | 8 8 8 Average Capacity 7 | 6 8 8 Most Carried 8 | 2 5 8 Average Carried 3 | . 2 6 Final Capacity 8 | 8 8 8 Final Carried 8 | . 5 8 Class Distribution -------------------- 84% | Mutant 15% | Scavenger-Mutant Dominant Class ---------------- Mutant | -10/Materials Scavenger-Mutant | -10/Mines Resources | -11 -10 -10 ----------- Run | Yrd Mat Min Matter Collected 553 | 178 145 230 Remotely . | . . . Salvage Created 492 | . 401 91 Parts 25 | . 23 2 Haulers Intercepted 1 | . 1 . Recyclers Shooed 1 | . 1 . Parts Field Recycled . | . . . Retrieved Matter . | . . . Parts Self-Destructed . | . . . Prevented . | . . . Kills | -11 -10 -10 ------- Run | Yrd Mat Min Combat Hostiles Destroyed 12 | . 9 3 Guns 4 | . 2 2 Cannons 3 | . 2 1 AOE 4 | . 4 . Classes Destroyed 7 | . 6 1 Worker 2 | . 2 . Builder 1 | . 1 . Hauler 1 | . 1 . Watcher 2 | . 2 . Swarmer 5 | . 3 2 Grunt 6 | . 6 . Sentry 1 | . . 1 Best Kill Streak 3 | . 3 2 Combat Bots Only 3 | . 3 2 Max Kills in Single Turn 2 | . 2 1 Gunslinging . | . . . Exploded 2 | . 2 . Melee . | . . . Uniques/NPCs Destroyed . | . . . Combat | -11 -10 -10 -------- Run | Yrd Mat Min Hostile Shots Fired 56 | . 42 14 Missed 17 | . 14 3 Hits 39 | . 28 11 Projectile 39 | . 28 11 AOE 7 | . . 7 Damage Taken 785 | . 460 325 Core 262 | . 135 127 Absorbed by Shields . | . . . Core Remaining (%) 100 | 100 . . Volleys Fired 54 | . 46 8 Largest 2 | . 2 2 Hottest 120 | . 110 120 Shots Fired 91 | . 76 15 Gun 50 | . 45 5 Cannon 27 | . 17 10 Launcher 14 | . 14 . Special . | . . . Kinetic 5 | . . 5 Thermal 68 | . 58 10 Explosive 14 | . 14 . Electromagnetic 4 | . 4 . Robot Hit Streak 9 | . 8 9 Robot Miss Streak 4 | . 4 2 Penetration Max . | . . . Secondary Targets . | . . . Shots Hit Robots 50 | . 39 11 Core Hits 26 | . 22 4 Critical Kills . | . . . Critical Parts Destroyed . | . . . Critical Strikes . | . . . Melee Attacks . | . . . Impact . | . . . Slashing . | . . . Piercing . | . . . Sneak Attacks . | . . . Combat Hostiles . | . . . Follow-up Attacks . | . . . Damage Inflicted 1172 | . 946 226 Guns 420 | . 338 82 Cannons 338 | . 213 125 Explosions 377 | . 377 . Melee . | . . . Ramming 37 | . 18 19 Kinetic 82 | . . 82 Thermal 625 | . 500 125 Explosive 377 | . 377 . Electromagnetic 51 | . 51 . Impact . | . . . Slashing . | . . . Piercing . | . . . Highest Corruption . | . . . Average Corruption . | . . . Corruption Purged . | . . . Corruption Blocked . | . . . Overload Shots . | . . . Overflow Damage 20 | . 20 . Projectiles . | . . . Explosions 20 | . 20 . Melee . | . . . Knockbacks . | . . . Impact . | . . . Kinetic . | . . . Secondary . | . . . Self-Inflicted Damage 144 | . 135 9 Shots 6 | . 6 . Rammed 5 | . 2 3 Targets Rammed 5 | . 2 3 Kicked . | . . . Crushed . | . . . Highest Temperature 364 | . 364 198 Average Temperature 108 | . 115 72 Received Heat Transfer 186 | . 177 9 Effects 2 | . 2 . Shutdowns 1 | . 1 . Energy Bleed 1 | . 1 . Siege Activations . | . . . Martial Activations . | . . . Shielding Activations . | . . . Robots Disrupted . | . . . Combat Hostiles . | . . . Robots Corrupted . | . . . Combat Hostiles . | . . . Parts Fried . | . . . Impact Corruptions . | . . . Robots Melted 1 | . 1 . Combat Hostiles 1 | . 1 . Parts Melted 6 | . 4 2 Heat Transferred 1554 | . 1295 259 Parts Sabotaged . | . . . Parts Stolen . | . . . Parts Stripped . | . . . Power Chain Reactions . | . . . Alert | -11 -10 -10 ------- Run | Yrd Mat Min Maximum Alert Level . | . . . Low Security (%) 100 | 100 100 100 Level 1 . | . . . Level 2 . | . . . Level 3 . | . . . Level 4 . | . . . Level 5 . | . . . High Security . | . . . Max Security . | . . . Peak Influence 156 | . 156 64 Initial 13 | . . 13 Average 43 | . 59 12 Influence Increases 453 | . 359 94 Destroy 0b10 Robot/C 260 | . 180 80 Destroy 0b10 Robot/NC 30 | . 30 . Destroy Leader 56 | . 46 10 Allied During Kill 4 | . . 4 Disable Machine 30 | . 30 . Destroy Structure 73 | . 73 . Influence Decreases 449 | . 323 126 Entered New Map 23 | . . 23 Time Decay 366 | . 293 73 Lost Part 60 | . 30 30 Squads Dispatched 1 | . 1 . Investigation . | . . . Extermination . | . . . Reinforcement 1 | . 1 . Assault . | . . . Garrison . | . . . Intercept . | . . . Searches Triggered . | . . . Construction Impeded . | . . . Haulers Reinforced . | . . . Active Scanning Responses . | . . . Cargo Convoy Interrupts . | . . . Stealth | -11 -10 -10 --------- Run | Yrd Mat Min Distress Signals . | . . . Communications Jammed . | . . . Distress Signals . | . . . Times Spotted 21 | . 12 9 Peak Tracking Total 3 | . 3 3 Tactical Retreats . | . . . Traps | -11 -10 -10 ------- Run | Yrd Mat Min Traps Triggered . | . . . Indirectly . | . . . Trap Hack Attempts . | . . . Triggered . | . . . Disarmed . | . . . Reprogrammed . | . . . Reused . | . . . Traps Extracted . | . . . Installed . | . . . Triggered . | . . . Machines | -11 -10 -10 ---------- Run | Yrd Mat Min Machines Disabled 5 | . 5 . Max in Single Turn 3 | . 3 . Machines Repaired . | . . . Machines Dismantled . | . . . Machines Sabotaged . | . . . Overloaded Fab Kills . | . . . Hacking | -11 -10 -10 --------- Run | Yrd Mat Min Machines Accessed . | . . . Terminals . | . . . Fabricators . | . . . Repair Stations . | . . . Recycling Units . | . . . Scanalyzers . | . . . Garrison Access . | . . . Total Hacks . | . . . Successful . | . . . Failed . | . . . Catastrophic . | . . . Database Lockouts . | . . . Manual . | . . . Terminals . | . . . Fabricators . | . . . Repair Stations . | . . . Recycling Units . | . . . Scanalyzers . | . . . Garrison Access . | . . . Terminal Hacks . | . . . Fabricator Hacks . | . . . Repair Station Hacks . | . . . Recycling Unit Hacks . | . . . Scanalyzer . | . . . Garrison Access Hacks . | . . . Unauthorized Hacks . | . . . Terminals . | . . . Fabricators . | . . . Repair Stations . | . . . Recycling Units . | . . . Scanalyzers . | . . . Garrison Access . | . . . Data Cores Recovered . | . . . Used . | . . . Hacking Detections . | . . . Full Trace Events . | . . . Feedback Events . | . . . Feedback Blocked . | . . . Robot Schematics Acquired . | . . . Robots Built . | . . . Authchips . | . . . Time . | . . . Total Robot Build Rating . | . . . Part Schematics Acquired . | . . . Parts Built . | . . . Authchips . | . . . Time . | . . . Total Part Build Rating . | . . . Parts Repaired . | . . . Time . | . . . Parts Recycled . | . . . Recycled Matter . | . . . Retrieved Matter . | . . . Retrieved Components . | . . . Parts Scanalyzed . | . . . Part Schematics Acquired . | . . . Parts Damaged . | . . . Bothacking | -11 -10 -10 ------------ Run | Yrd Mat Min Used RIF Installer . | . . . Robots Hacked . | . . . Non-combat . | . . . Combat . | . . . Robot Hacks Applied . | . . . Relay Couplers Released . | . . . Fabnet Peak Effective % . | . . . Robots Rewired . | . . . Allies Hacked . | . . . Hacks Repelled . | . . . Allies | -11 -10 -10 -------- Run | Yrd Mat Min Total Allies 1 | . . 1 Largest Group 1 | . . 1 Highest-Rated Group 31 | . . 31 Highest-Rated Ally 31 | . . 31 Total Orders . | . . . Ally Attacks 10 | . . 10 Total Damage 106 | . . 106 Kills 1 | . . 1 Allies Corrupted . | . . . Allies Melted . | . . . Intel | -11 -10 -10 ------- Run | Yrd Mat Min Active Infowar (turns) . | . . . Robot Analysis Total . | . . . Derelict Logs Recovered 1 | . . 1 Drone Launches . | . . . Drone Recoveries . | . . . Exploration | -11 -10 -10 ------------- Run | Yrd Mat Min Turns Passed 1236 | 50 830 356 Spaces Moved 833 | 44 524 265 Core 8 | 4 4 . Treads . | . . . Legs 83 | . 83 . Wheels 240 | 40 200 . Hover 502 | . 237 265 Flight . | . . . Fastest Speed 50 | 50 90 116 Average Speed 109 | 86 107 116 Slowest Speed 250 | 90 250 116 Overloaded Moves . | . . . Propulsion Burnouts . | . . . Robots Hopped . | . . . Potential Cave-ins 2 | . 2 . Cave-ins Triggered . | . . . Exploration Rate (%) 46 | 3 79 57 Regions Visited 2 Branch Regions 1 Pre-discovered Areas . | . . . Known Exits Taken 1 | . 1 . Unknown Exits Taken 1 | 1 . . Scrap Searched . | . . . Spaces Dug 29 | . 29 . Terrain Destroyed 84 | . 84 . Melee . | . . . Projectile . | . . . AOE 84 | . 84 . Terrain Rammed . | . . . Walls Destroyed . | . . . Machines Disabled . | . . . Actions | -11 -10 -10 --------- Run | Yrd Mat Min Total 1065 | 55 710 300 Wait 112 | . 103 9 Move 831 | 43 523 265 Hop . | . . . Pick Up 28 | 6 15 7 Fast Attach . | . . . Attach 10 | 6 4 . Detach . | . . . Swap 15 | . 11 4 Drop 10 | . 6 4 Fire 54 | . 46 8 Melee . | . . . Ram 5 | . 2 3 Kick . | . . . Crush . | . . . Escape Stasis . | . . . Rewire . | . . . Trap . | . . . Miscellaneous . | . . . Route ------- -11/Scrapyard -10/Materials (discovered 3 exits: *Mat x2 / *Min) -10/Mines (discovered 3 exits: *Mat x2 / *Sub) History --------- Turn | Location | Event 15 | -11/Scrapyard | Discovered new exit (range 15) 51 | -11/Scrapyard | Entered Materials 326 | -10/Materials | Build established: Mutant 331 | -10/Materials | Core integrity fell below 50% 337 | -10/Materials | Discovered new exit (range 3) 444 | -10/Materials | Discovered new exit (range 5) 492 | -10/Materials | Discovered new exit (range 15) 878 | -10/Materials | Identified exit to Mines 881 | -10/Materials | Entered Mines 886 | -10/Mines | Assembled infested the area 891 | -10/Mines | Assisted by a Guerilla fighting off Assembled 929 | -10/Mines | Discovered new exit (range 11) 942 | -10/Mines | Identified exit to Materials 951 | -10/Mines | Discovered new exit (range 14) 962 | -10/Mines | Identified exit to Subcaves 1038 | -10/Mines | Joined a pair of Derelicts in attacking an 0b10 outpost 1114 | -10/Mines | Discovered exit to Materials (range 5) 1115 | -10/Mines | Escorted by a lone wolf Derelict 1229 | -10/Mines | Learned location of 1 exit from Materials 1234 | -10/Mines | Core integrity fell below 20% 1237 | -10/Mines | Destroyed by D-53 Grenadier with Mini Grenade Launcher Last Messages --------------- 01090_ Slammed into K-01 Serf. 01093_ Acquired 52 matter. 01104_ Slammed into R-06 Scavenger. 01114_ EXIT=FOUND: MATERIALS 01115_ A derelict emerges from the shadows: "Nice work disposing of those Unaware! I'm happy to return the favor and help see you out of these parts." 01118_ Acquired 9 matter. 01122_ Acquired 56 matter. 01152_ S-10 Pest destroyed. 01158_ Acquired 6 matter. 01229_ Acquired derelict log, extracted data. Data stored: Materials exits (x1). 01229_ G-34 Mercenary destroyed. 01229_ G-47 Trooper destroyed. 01231_ Hover Unit destroyed. 01237_ The unstable cave ceiling collapses. 01237_ Grenade Launcher destroyed. 01237_ Lgt. Angular Momentum Engine destroyed. Map ----- +----------------------------------------------------+ | ??# ## #??? | | ?# ### #???? | | # ?## ## ##???? | | ??""" ?## #### ##????? | | ???"" ??## #?## ##????? | | ????? #??## ##?# ##???? | | #?????##???####??# #???? | | #????????????????## #???? | | #?????????????????# ##???? | | ####??????????????# #????? | | #?????????????## #????? | | #?????????????# #????? | | #?????????????# ##????? | | #?????????????## ###?????? | | #??????????????# #???????? | | #??????????????# ####????? | | #??????????????# #????? | | ## #???????????# #????? | | #???????????#### #????? | | #??????????????# ####?? | | ####??????????#?### ##? | | ####????????????## # # ## | | ????????????????# g # | | ?????????????# ## = | | ?????????????# d % | | ???????????????#d % @ | | ????????????????# ! | | ????????????????# | | ????????????????#### # | | ???????????????????#### # ## | | ??????????????????????#######? | | ?????????????????????????????? | | ?????????????????????????????? | | ?????????????????????????????? | | ?????????????????????????????? | | ?????????????????????????????? | | ?????????????????????????????? | | ?????????????????????????????? | | ?????????????????????????????? | | ?????????????????????????????? | | ?????????????????????????????? | | ?????????????????????????????? | | ?????????????????????????????? | | ?????????????????????????????? | | ?????????????????????????????? | | ?????????????????????????????? | | ?????????????????????????????? | | ?????????????????????????????? | | ?????????????????????????????? | | ?????????????????????????????? | +----------------------------------------------------+ Best States ------------- Heat Dissipation 25 Energy Generation 18 Energy Capacity 250 Matter Stores 300 Matter Capacity 300 Sight Range 16 Terrain Scan Density 10 Weapon Shielding 33 Evasion (%) 55 Item Schematics ----------------- None Robot Schematics ------------------ None Fabricated ------------ Nothing Repaired ---------- Nothing Alien Tech Used ----------------- None Achievements -------------- None Challenges ------------ None Game ------ Seed QuantumMinesnifferSheargun Manual? 0 Play Time 00:10:50 Cumulative 29.7 hours Start 2025.10.15 @ 22:05:06 End 2025.10.15 @ 22:18:56 Sessions 1 Manual Loads 0 Difficulty Rogue Special Mode None Game No. 85 Rogue 79 Adventurer 6 Explorer 0 Win Type - Total 0 Types 0/0/0/0/0/0/0/0/0/0 Lore% 10 Gallery% 23 Achievement% 20 Wizard Run 0 Options --------- Layout 1 ASCII 0 Keyboard 0 Movement Numpad Keybinds 0 Fullscreen 1 Font 24/Smallcaps Map View 50x40 Zoom Use 0% Tactical HUD 1 Map Filters NONE Filters NONE Steam 1 RUN: 4a9ce976-9079-4686-9597-46141788a08a